fUST/lending_fUST_20250814
["ID","MTS","AMOUNT","RATE_DAILY","PERIOD"]
[379094454,1755129039983,-460.0,0.00019178,2]
[379094455,1755129039993,-218.33694933,0.00019178,2]
[379094456,1755129040002,-460.0,0.00019178,2]
[379094457,1755129040012,-460.0,0.00019178,2]
[379094458,1755129040022,-460.0,0.00019178,2]
[379094459,1755129040031,-460.0,0.00019178,2]
[379094460,1755129040042,-460.0,0.00019178,2]
[379094461,1755129040051,-317.24846275,0.00019178,2]
[379094462,1755129040061,-460.0,0.00019178,2]
[379094463,1755129040070,-460.0,0.00019178,2]
[379094464,1755129040080,-460.0,0.00019178,2]
[379094465,1755129040089,-331.69770784,0.00019178,2]
[379094466,1755129040099,-460.0,0.00019178,2]
[379094467,1755129040108,-460.0,0.00019178,2]
[379094468,1755129040118,-460.0,0.00019178,2]
[379094469,1755129040127,-460.0,0.00019178,2]
[379094470,1755129040137,-460.0,0.00019178,2]
[379094471,1755129040146,-483.84,0.00019178,2]
[379094472,1755129040155,-460.0,0.00019178,2]
[379094473,1755129040164,-601.09512309,0.00019178,2]
[379094474,1755129040174,-460.0,0.00019178,2]
[379094475,1755129040184,-460.0,0.00019178,2]
[379094476,1755129040193,-460.0,0.00019178,2]
[379094477,1755129040203,-460.0,0.00019178,2]
[379094478,1755129040212,-460.0,0.00019178,2]
[379094479,1755129040221,-151.0,0.00019178,2]
[379094480,1755129040231,-151.0,0.00019178,2]
[379094481,1755129040240,-151.0,0.00019178,2]
[379094482,1755129040250,-151.0,0.00019178,2]
[379094483,1755129040259,-151.0,0.00019178,2]
[379094484,1755129040268,-151.0,0.00019178,2]
[379094485,1755129040278,-220.276109,0.00019178,2]
[379094486,1755129040287,-273.867423,0.00019178,2]
[379094487,1755129040297,-460.0,0.00019178,2]
[379094488,1755129040306,-460.0,0.00019178,2]
[379094489,1755129040316,-460.0,0.00019178,2]
[379094490,1755129040325,-460.0,0.00019178,2]
[379094491,1755129040335,-166.96949579,0.00019178,2]
[379094492,1755129040344,-1010.24,0.00019178,2]
[379094493,1755129040354,-500.0,0.00019178,2]
[379094494,1755129040363,-460.0,0.00019178,2]
[379094495,1755129040372,-460.0,0.00019178,2]
[379094496,1755129040382,-460.0,0.00019178,2]
[379094497,1755129040391,-460.0,0.00019178,2]
[379094498,1755129040400,-460.0,0.00019178,2]
[379094499,1755129040412,-460.0,0.00019178,2]
[379094500,1755129040423,-460.0,0.00019178,2]
[379094501,1755129040432,-460.0,0.00019178,2]
[379094502,1755129040444,-613.77,0.00019178,2]
[379094503,1755129040454,-610.78,0.00019178,2]
[379094504,1755129040463,-460.0,0.00019178,2]
[379094505,1755129040472,-460.0,0.00019178,2]
[379094506,1755129040482,-460.0,0.00019178,2]
[379094507,1755129040492,-460.0,0.00019178,2]
[379094508,1755129040503,-578.5388854,0.00019178,2]
[379094509,1755129040515,-460.0,0.00019178,2]
[379094510,1755129040527,-460.0,0.00019178,2]
[379094511,1755129040540,-460.0,0.00019178,2]
[379094512,1755129040550,-460.0,0.00019178,2]
[379094513,1755129040561,-460.0,0.00019178,2]
[379094514,1755129040572,-698.5,0.00019178,2]
[379094515,1755129040583,-460.0,0.00019178,2]
[379094516,1755129040593,-286.6069143,0.00019178,2]
[379094517,1755129040603,-232.9559,0.00019178,2]
[379094518,1755129040614,-232.9559,0.00019178,2]
[379094519,1755129040627,-460.0,0.00019178,2]
[379094520,1755129040636,-232.9559,0.00019178,2]
[379094521,1755129040646,-232.9559,0.00019178,2]
[379094522,1755129040657,-232.9559,0.00019178,2]
[379094523,1755129040666,-232.9559,0.00019178,2]
[379094524,1755129040677,-232.9559,0.00019178,2]
[379094525,1755129040687,-460.0,0.00019178,2]
[379094526,1755129040696,-232.9559,0.00019178,2]
[379094527,1755129040705,-232.9559,0.00019178,2]
[379094528,1755129040715,-232.9559,0.00019178,2]
[379094529,1755129040729,-232.9559,0.00019178,2]
[379094530,1755129040739,-232.9559,0.00019178,2]
[379094531,1755129040748,-232.9559,0.00019178,2]
[379094532,1755129040758,-232.9559,0.00019178,2]
[379094533,1755129040767,-232.9559,0.00019178,2]
[379094534,1755129040777,-232.9559,0.00019178,2]
[379094535,1755129040786,-232.9559,0.00019178,2]
[379094536,1755129040795,-460.0,0.00019178,2]
[379094537,1755129040805,-232.9559,0.00019178,2]
[379094538,1755129040815,-232.9559,0.00019178,2]
[379094539,1755129040824,-232.955893,0.00019178,2]
[379094540,1755129040834,-460.0,0.00019178,2]
[379094541,1755129040843,-460.0,0.00019178,2]
[379094542,1755129040853,-460.0,0.00019178,2]
[379094543,1755129040863,-857.56,0.00019178,2]
[379094544,1755129040872,-379.82388907,0.00019178,2]
[379094545,1755129040882,-950.52,0.00019178,2]
[379094546,1755129040892,-460.0,0.00019178,2]
[379094547,1755129040902,-520.65,0.00019178,2]
[379094548,1755129040911,-151.0,0.00019178,2]
[379094549,1755129040921,-151.0,0.00019178,2]
[379094550,1755129040930,-151.0,0.00019178,2]
[379094551,1755129040939,-151.0,0.00019178,2]
[379094552,1755129040949,-460.0,0.00019178,2]
[379094553,1755129040959,-460.0,0.00019178,2]
[379094554,1755129040968,-460.0,0.00019178,2]
[379094555,1755129040978,-151.0,0.00019178,2]
[379094556,1755129040987,-460.0,0.00019178,2]
[379094557,1755129040997,-151.0,0.00019178,2]
[379094558,1755129041008,-151.0,0.00019178,2]
[379094559,1755129041019,-460.0,0.00019178,2]
[379094560,1755129041029,-151.0,0.00019178,2]
[379094561,1755129041039,-151.0,0.00019178,2]
[379094562,1755129041049,-151.0,0.00019178,2]
[379094563,1755129041059,-151.0,0.00019178,2]
[379094564,1755129041071,-151.0,0.00019178,2]
[379094565,1755129041080,-151.0,0.00019178,2]
[379094566,1755129041090,-460.0,0.00019178,2]
[379094567,1755129041101,-151.0,0.00019178,2]
[379094568,1755129041111,-206.91714857,0.00019178,2]
[379094569,1755129041122,-460.0,0.00019178,2]
[379094570,1755129041131,-460.0,0.00019178,2]
[379094571,1755129041141,-460.0,0.00019178,2]
[379094572,1755129041150,-460.0,0.00019178,2]
[379094573,1755129041161,-645.8,0.00019178,2]
[379094574,1755129041170,-460.0,0.00019178,2]
[379094575,1755129041180,-460.0,0.00019178,2]
[379094576,1755129041190,-460.0,0.00019178,2]
[379094577,1755129041201,-460.0,0.00019178,2]
[379094578,1755129041210,-460.0,0.00019178,2]
[379094579,1755129041221,-460.0,0.00019178,2]
[379094580,1755129041231,-460.0,0.00019178,2]
[379094581,1755129041243,-460.0,0.00019178,2]
[379094582,1755129041253,-460.0,0.00019178,2]
[379094583,1755129041262,-460.0,0.00019178,2]
[379094584,1755129041272,-266.541796,0.00019178,2]
[379094585,1755129041282,-599.29,0.00019178,2]
[379094586,1755129041291,-460.0,0.00019178,2]
[379094587,1755129041301,-460.0,0.00019178,2]
[379094588,1755129041310,-460.0,0.00019178,2]
[379094589,1755129041320,-1020.49,0.00019178,2]
[379094590,1755129041329,-460.0,0.00019178,2]
[379094591,1755129041339,-460.0,0.00019178,2]
[379094592,1755129041348,-460.0,0.00019178,2]
[379094593,1755129041358,-460.0,0.00019178,2]
[379094594,1755129041367,-460.0,0.00019178,2]
[379094595,1755129041377,-460.0,0.00019178,2]
[379094596,1755129041386,-460.0,0.00019178,2]
[379094597,1755129041396,-460.0,0.00019178,2]
[379094598,1755129041405,-460.0,0.00019178,2]
[379094599,1755129041414,-460.0,0.00019178,2]
[379094600,1755129041423,-460.0,0.00019178,2]
[379094601,1755129041433,-460.0,0.00019178,2]
[379094602,1755129041447,-460.0,0.00019178,2]
[379094603,1755129041456,-183.87053877,0.00019178,2]
[379094604,1755129041465,-151.0,0.00019178,2]
[379094605,1755129041475,-151.0,0.00019178,2]
[379094606,1755129041485,-151.0,0.00019178,2]
[379094607,1755129041494,-151.0,0.00019178,2]
[379094608,1755129041503,-151.0,0.00019178,2]
[379094609,1755129041513,-460.0,0.00019178,2]
[379094610,1755129041523,-155.05398,0.00019178,2]
[379094611,1755129041532,-460.0,0.00019178,2]
[379094612,1755129041541,-460.0,0.00019178,2]
[379094613,1755129041551,-460.0,0.00019178,2]
[379094614,1755129041560,-460.0,0.00019178,2]
[379094615,1755129041569,-460.0,0.00019178,2]
[379094616,1755129041578,-460.0,0.00019178,2]
[379094617,1755129041587,-460.0,0.00019178,2]
[379094618,1755129041597,-691.53,0.00019178,2]
[379094619,1755129041606,-460.0,0.00019178,2]
[379094620,1755129041615,-460.0,0.00019178,2]
[379094621,1755129041625,-460.0,0.00019178,2]
[379094622,1755129041636,-460.0,0.00019178,2]
[379094623,1755129041646,-460.0,0.00019178,2]
[379094624,1755129041655,-460.0,0.00019178,2]
[379094625,1755129041665,-296.58386081,0.00019178,2]
[379094626,1755129041675,-460.0,0.00019178,2]
[379094627,1755129041684,-460.0,0.00019178,2]
[379094628,1755129041694,-460.0,0.00019178,2]
[379094629,1755129041703,-460.0,0.00019178,2]
[379094630,1755129041712,-460.0,0.00019178,2]
[379094631,1755129041722,-500.98,0.00019178,2]
[379094632,1755129041731,-460.0,0.00019178,2]
[379094633,1755129041741,-460.0,0.00019178,2]
[379094634,1755129041750,-460.0,0.00019178,2]
[379094635,1755129041759,-460.0,0.00019178,2]
[379094636,1755129041769,-460.0,0.00019178,2]
[379094637,1755129041779,-715.08,0.00019178,2]
[379094638,1755129041788,-460.0,0.00019178,2]
[379094639,1755129041798,-460.0,0.00019178,2]
[379094640,1755129041807,-460.0,0.00019178,2]
[379094641,1755129041816,-460.0,0.00019178,2]
[379094642,1755129041826,-800.62,0.00019178,2]
[379094643,1755129041836,-649.05,0.00019178,2]
[379094644,1755129041846,-460.0,0.00019178,2]
[379094645,1755129041856,-681.78,0.00019178,2]
[379094646,1755129041867,-1516.57,0.00019178,2]
[379094647,1755129041878,-460.0,0.00019178,2]
[379094648,1755129041888,-460.0,0.00019178,2]
[379094649,1755129041899,-523.08,0.00019178,2]
[379094650,1755129041910,-460.0,0.00019178,2]
[379094651,1755129041921,-460.0,0.00019178,2]
[379094652,1755129041930,-460.0,0.00019178,2]
[379094653,1755129041940,-460.0,0.00019178,2]
[379094654,1755129041953,-460.0,0.00019178,2]
[379094655,1755129041965,-460.0,0.00019178,2]
[379094656,1755129041974,-460.0,0.00019178,2]
[379094657,1755129041984,-1522.08,0.00019178,2]
[379094658,1755129041994,-1047.29,0.00019178,2]
[379094659,1755129042004,-460.0,0.00019178,2]
[379094660,1755129042015,-460.0,0.00019178,2]
[379094661,1755129042024,-460.0,0.00019178,2]
[379094662,1755129042034,-460.0,0.00019178,2]
[379094663,1755129042043,-460.0,0.00019178,2]
[379094664,1755129042053,-1123.89,0.00019178,2]
[379094665,1755129042064,-460.0,0.00019178,2]
[379094666,1755129042074,-460.0,0.00019178,2]
[379094667,1755129042083,-460.0,0.00019178,2]
[379094668,1755129042095,-1635.62269404,0.00019178,2]
[379094723,1755129042914,-1217.5051285,0.00019178,2]
[379094725,1755129042926,-87.00217746,0.00019178,2]
[379094726,1755129042935,-217.42352593,0.00019178,2]
[379094727,1755129042944,-460.0,0.00019178,2]
[379094729,1755129042954,-997.2780767,0.00019178,2]
[379094838,1755129046036,-116.5519233,0.00019178,2]
[379094839,1755129046046,-460.0,0.00019178,2]
[379094840,1755129046055,-673.64704291,0.00019178,2]
[379094841,1755129046065,-460.0,0.00019178,2]
[379094842,1755129046074,-535.33,0.00019178,2]
[379094843,1755129046084,-460.0,0.00019178,2]
[379094844,1755129046093,-333.68002238,0.00019178,2]
[379094846,1755129046105,-126.31997762,0.00019178,2]
[379094847,1755129046115,-470.81,0.00019178,2]
[379094848,1755129046124,-586.33015003,0.00019178,2]
[379094849,1755129046133,-357.15914865,0.00019178,2]
[379094851,1755130232296,-102.84085135,0.00019178,2]
[379094852,1755130232306,-619.32,0.00019178,2]
[379094853,1755130232315,-482.55,0.00019178,2]
[379094854,1755130232517,-460.0,0.00019178,2]
[379094855,1755130232526,-460.0,0.00019178,2]
[379094856,1755130232536,-460.0,0.00019178,2]
[379094857,1755130232545,-2.66235828,0.00019178,2]
[379094858,1755130232556,-457.33764172,0.00019178,2]
[379094859,1755130232566,-460.0,0.00019178,2]
[379094860,1755130232575,-460.0,0.00019178,2]
[379094861,1755130232584,-3001.72,0.00019178,2]
[379094862,1755130232593,-460.0,0.00019178,2]
[379094863,1755130232602,-487.9,0.00019178,2]
[379094864,1755130232611,-460.0,0.00019178,2]
[379094865,1755130232620,-460.0,0.00019178,2]
[379094866,1755130232629,-460.0,0.00019178,2]
[379094868,1755130232639,-460.0,0.00019178,2]
[379094869,1755130232648,-460.0,0.00019178,2]
[379094870,1755130232657,-460.0,0.00019178,2]
[379094871,1755130232666,-17431.36,0.00019178,2]
[379094872,1755130232675,-460.0,0.00019178,2]
[379094873,1755130232684,-460.0,0.00019178,2]
[379094875,1755130232694,-460.0,0.00019178,2]
[379094876,1755130232703,-460.0,0.00019178,2]
[379094877,1755130232712,-460.0,0.00019178,2]
[379094878,1755130232722,-460.0,0.00019178,2]
[379094879,1755130232732,-460.0,0.00019178,2]
[379094880,1755130232742,-501.83819179,0.00019178,2]
[379094881,1755130232753,-460.0,0.00019178,2]
[379094882,1755130232763,-460.0,0.00019178,2]
[379094883,1755130232773,-460.0,0.00019178,2]
[379094884,1755130232782,-460.0,0.00019178,2]
[379094885,1755130232792,-229.50989978,0.00019178,2]
[379094886,1755130232802,-460.0,0.00019178,2]
[379094887,1755130232812,-487.47,0.00019178,2]
[379094888,1755130232821,-460.0,0.00019178,2]
[379094889,1755130232830,-460.0,0.00019178,2]
[379094890,1755130232839,-460.0,0.00019178,2]
[379094891,1755130232849,-460.0,0.00019178,2]
[379094892,1755130232858,-460.0,0.00019178,2]
[379094893,1755130232869,-460.0,0.00019178,2]
[379094894,1755130232880,-468.32217539,0.00019178,2]
[379094895,1755130232889,-562.63,0.00019178,2]
[379094896,1755130232898,-460.0,0.00019178,2]
[379094897,1755130232907,-460.0,0.00019178,2]
[379094898,1755130232916,-460.0,0.00019178,2]
[379094899,1755130232926,-460.0,0.00019178,2]
[379094900,1755130232935,-460.0,0.00019178,2]
[379094901,1755130232944,-460.0,0.00019178,2]
[379094902,1755130232954,-460.0,0.00019178,2]
[379094903,1755130232963,-460.0,0.00019178,2]
[379094904,1755130232972,-460.0,0.00019178,2]
[379094905,1755130232982,-460.0,0.00019178,2]
[379094906,1755130232991,-460.0,0.00019178,2]
[379094907,1755130233001,-3057.92,0.00019178,2]
[379094908,1755130233011,-460.0,0.00019178,2]
[379094909,1755130233020,-327.53248257,0.00019178,2]
[379094910,1755130233032,-132.46751743,0.00019178,2]
[379094911,1755130233042,-460.0,0.00019178,2]
[379094912,1755130233052,-151.0,0.00019178,2]
[379094913,1755130233061,-151.0,0.00019178,2]
[379094914,1755130233071,-460.0,0.00019178,2]
[379094915,1755130233090,-37177.42,0.00019178,2]
[379094916,1755130233102,-460.0,0.00019178,2]
[379094917,1755130233113,-460.0,0.00019178,2]
[379094918,1755130233123,-460.0,0.00019178,2]
[379094919,1755130233133,-460.0,0.00019178,2]
[379094920,1755130233144,-460.0,0.00019178,2]
[379094921,1755130233154,-460.0,0.00019178,2]
[379094922,1755130233164,-3202.85,0.00019178,2]
[379094923,1755130233175,-460.0,0.00019178,2]
[379094924,1755130233184,-460.0,0.00019178,2]
[379094925,1755130233195,-449.84872993,0.00019178,2]
[379094926,1755130233206,-460.0,0.00019178,2]
[379094928,1755130233216,-460.0,0.00019178,2]
[379094930,1755130233226,-460.0,0.00019178,2]
[379094931,1755130233238,-840.32,0.00019178,2]
[379094933,1755130233248,-460.0,0.00019178,2]
[379094935,1755130233258,-1595.92,0.00019178,2]
[379094937,1755130233268,-692.66,0.00019178,2]
[379094938,1755130233279,-1069.01,0.00019178,2]
[379094940,1755130233289,-460.0,0.00019178,2]
[379094941,1755130233299,-1081.51,0.00019178,2]
[379094943,1755130233312,-811.58,0.00019178,2]
[379094945,1755130233323,-460.0,0.00019178,2]
[379094947,1755130233332,-460.0,0.00019178,2]
[379094949,1755130233342,-220.0,0.00019178,2]
[379094950,1755130233352,-437.55432168,0.00019178,2]
[379094952,1755130233366,-22.44567832,0.00019178,2]
[379094953,1755130233376,-848.07,0.00019178,2]
[379094954,1755130233387,-460.0,0.00019178,2]
[379094955,1755130233396,-707.06,0.00019178,2]
[379094956,1755130233406,-460.0,0.00019178,2]
[379094957,1755130233416,-460.0,0.00019178,2]
[379094958,1755130233426,-1146.99,0.00019178,2]
[379094959,1755130233435,-1055.39515378,0.00019178,2]
[379094968,1755130237917,-291.51484622,0.00019178,2]
[379094969,1755130237927,-492.29911518,0.00019178,2]
[379094970,1755130238090,-234.80088482,0.00019178,2]
[379094971,1755130238100,-460.0,0.00019178,2]
[379094972,1755130238110,-460.0,0.00019178,2]
[379094973,1755130238120,-445.19911518,0.00019178,2]
[379094974,1755130238132,-14.80088482,0.00019178,2]
[379094975,1755130238142,-460.0,0.00019178,2]
[379094976,1755130238152,-358.62128928,0.00019178,2]
[379094977,1755130238164,-101.37871072,0.00019178,2]
[379094978,1755130238173,-460.0,0.00019178,2]
[379094980,1755130238182,-169.60128848,0.00019178,2]
[379094981,1755130238194,-290.39871152,0.00019178,2]
[379094982,1755130238205,-195.07911451,0.00019178,2]
[379094983,1755130238217,-264.92088549,0.00019178,2]
[379094984,1755130238227,-460.0,0.00019178,2]
[379094985,1755130238240,-460.0,0.00019178,2]
[379094986,1755130238249,-721.42,0.00019178,2]
[379094987,1755130238259,-1053.03,0.00019178,2]
[379094988,1755130238269,-460.0,0.00019178,2]
[379094989,1755130238279,-460.0,0.00019178,2]
[379094990,1755130238289,-460.0,0.00019178,2]
[379094991,1755130238299,-460.0,0.00019178,2]
[379094992,1755130238309,-459.37666684,0.00019178,2]
[379094993,1755130238319,-460.0,0.00019178,2]
[379094994,1755130238329,-460.0,0.00019178,2]
[379094995,1755130238338,-1096.46,0.00019178,2]
[379094996,1755130238348,-460.0,0.00019178,2]
[379094997,1755130238358,-496.39,0.00019178,2]
[379094998,1755130238367,-1800.67,0.00019178,2]
[379094999,1755130238377,-1131.2,0.00019178,2]
[379095000,1755130238387,-460.0,0.00019178,2]
[379095001,1755130238396,-1266.5,0.00019178,2]
[379095002,1755130238407,-3923.92,0.00019178,2]
[379095003,1755130238416,-460.0,0.00019178,2]
[379095004,1755130238426,-1048.37,0.00019178,2]
[379095005,1755130238435,-460.0,0.00019178,2]
[379095006,1755130238444,-460.0,0.00019178,2]
[379095007,1755130238454,-460.0,0.00019178,2]
[379095008,1755130238463,-1175.07,0.00019178,2]
[379095009,1755130238473,-461.12350806,0.00019178,2]
[379095010,1755130238483,-954.73,0.00019178,2]
[379095011,1755130238493,-1807.92,0.00019178,2]
[379095012,1755130238502,-621.37,0.00019178,2]
[379095013,1755130238512,-460.0,0.00019178,2]
[379095014,1755130238522,-460.0,0.00019178,2]
[379095015,1755130238532,-460.0,0.00019178,2]
[379095016,1755130238541,-460.0,0.00019178,2]
[379095017,1755130238552,-592.95,0.00019178,2]
[379095018,1755130238562,-460.0,0.00019178,2]
[379095019,1755130238572,-460.0,0.00019178,2]
[379095020,1755130238582,-1347.6,0.00019178,2]
[379095021,1755130238592,-13215.77037862,0.00019178,2]
[379095036,1755130239885,-4363.59962138,0.00019178,2]
[379095037,1755130239896,-460.0,0.00019178,2]
[379095038,1755130239907,-498.50960345,0.00019178,2]
[379095039,1755130239917,-761.29,0.00019178,2]
[379095040,1755130239926,-2781.6,0.00019178,2]
[379095041,1755130239939,-460.0,0.00019178,2]
[379095042,1755130239950,-460.0,0.00019178,2]
[379095043,1755130239960,-573.21,0.00019178,2]
[379095044,1755130239970,-460.0,0.00019178,2]
[379095045,1755130239980,-1036.7,0.00019178,2]
[379095046,1755130239991,-1948.93,0.00019178,2]
[379095047,1755130240002,-460.0,0.00019178,2]
[379095048,1755130240014,-460.0,0.00019178,2]
[379095049,1755130240024,-460.0,0.00019178,2]
[379095050,1755130240034,-1708.35,0.00019178,2]
[379095051,1755130240043,-1244.08,0.00019178,2]
[379095052,1755130240052,-460.0,0.00019178,2]
[379095053,1755130240063,-498.08,0.00019178,2]
[379095054,1755130240073,-497.28,0.00019178,2]
[379095055,1755130240084,-460.0,0.00019178,2]
[379095056,1755130240095,-718.71,0.00019178,2]
[379095057,1755130240106,-1003.08,0.00019178,2]
[379095058,1755130240117,-12369.83,0.00019178,2]
[379095059,1755130240128,-460.0,0.00019178,2]
[379095060,1755130240138,-460.0,0.00019178,2]
[379095061,1755130240147,-460.0,0.00019178,2]
[379095062,1755130240156,-460.0,0.00019178,2]
[379095063,1755130240166,-460.0,0.00019178,2]
[379095064,1755130240175,-460.0,0.00019178,2]
[379095065,1755130240185,-460.0,0.00019178,2]
[379095066,1755130240195,-1075.34,0.00019178,2]
[379095067,1755130240204,-460.0,0.00019178,2]
[379095068,1755130240214,-667.46503252,0.00019178,2]
[379095069,1755130240227,-3645.70496748,0.00019178,2]
[379095070,1755130240242,-460.0,0.00019178,2]
[379095071,1755130240251,-801.16,0.00019178,2]
[379095072,1755130240261,-460.0,0.00019178,2]
[379095073,1755130240270,-460.0,0.00019178,2]
[379095074,1755130240281,-460.0,0.00019178,2]
[379095075,1755130240291,-460.0,0.00019178,2]
[379095076,1755130240301,-460.0,0.00019178,2]
[379095077,1755130240312,-460.0,0.00019178,2]
[379095078,1755130240322,-703.33,0.00019178,2]
[379095079,1755130240331,-460.0,0.00019178,2]
[379095080,1755130240340,-1025.74,0.00019178,2]
[379095081,1755130240349,-545.85,0.00019178,2]
[379095082,1755130240359,-460.0,0.00019178,2]
[379095083,1755130240369,-460.0,0.00019178,2]
[379095084,1755130240378,-460.0,0.00019178,2]
[379095085,1755130240387,-460.0,0.00019178,2]
[379095086,1755130240397,-460.0,0.00019178,2]
[379095087,1755130240407,-1270.56,0.00019178,2]
[379095088,1755130240416,-1257.19,0.00019178,2]
[379095089,1755130240425,-460.0,0.00019178,2]
[379095090,1755130240436,-4363.55,0.00019178,2]
[379095091,1755130240446,-460.0,0.00019178,2]
[379095092,1755130240456,-460.0,0.00019178,2]
[379095093,1755130240465,-460.0,0.00019178,2]
[379095094,1755130240474,-793.32,0.00019178,2]
[379095095,1755130240484,-460.0,0.00019178,2]
[379095096,1755130240493,-460.0,0.00019178,2]
[379095097,1755130240503,-641.68,0.00019178,2]
[379095098,1755130240512,-460.0,0.00019178,2]
[379095099,1755130240521,-460.0,0.00019178,2]
[379095100,1755130240531,-187.676998,0.00019178,2]
[379095101,1755130240540,-187.676998,0.00019178,2]
[379095102,1755130240550,-187.676998,0.00019178,2]
[379095103,1755130240559,-187.676998,0.00019178,2]
[379095104,1755130240568,-460.0,0.00019178,2]
[379095105,1755130240578,-187.676998,0.00019178,2]
[379095106,1755130240587,-187.676998,0.00019178,2]
[379095107,1755130240598,-187.676998,0.00019178,2]
[379095108,1755130240608,-460.0,0.00019178,2]
[379095109,1755130240617,-187.676998,0.00019178,2]
[379095110,1755130240627,-3737.21,0.00019178,2]
[379095111,1755130240636,-460.0,0.00019178,2]
[379095112,1755130240646,-187.676998,0.00019178,2]
[379095113,1755130240655,-187.676998,0.00019178,2]
[379095114,1755130240664,-460.0,0.00019178,2]
[379095115,1755130240673,-187.676998,0.00019178,2]
[379095116,1755130240683,-187.676998,0.00019178,2]
[379095117,1755130240692,-1256.99,0.00019178,2]
[379095118,1755130240702,-187.676998,0.00019178,2]
[379095119,1755130240712,-460.0,0.00019178,2]
[379095120,1755130240722,-187.676994,0.00019178,2]
[379095121,1755130240731,-460.0,0.00019178,2]
[379095122,1755130240741,-989.07,0.00019178,2]
[379095123,1755130240750,-460.0,0.00019178,2]
[379095124,1755130240759,-842.36,0.00019178,2]
[379095125,1755130240769,-460.0,0.00019178,2]
[379095126,1755130240778,-849.66,0.00019178,2]
[379095127,1755130240788,-1153.88,0.00019178,2]
[379095128,1755130240798,-460.0,0.00019178,2]
[379095129,1755130240807,-460.0,0.00019178,2]
[379095130,1755130240817,-460.0,0.00019178,2]
[379095131,1755130240826,-460.0,0.00019178,2]
[379095132,1755130240837,-471.4,0.00019178,2]
[379095133,1755130240846,-500.0,0.00019178,2]
[379095134,1755130240856,-168.0,0.00019235,2]
[379095135,1755130240866,-200.0,0.00019243,20]
[379095136,1755130240876,-200.0,0.00019243,20]
[379095137,1755130240886,-200.0,0.00019243,20]
[379095138,1755130240895,-168.0,0.00019248,2]
[379095139,1755130240904,-294.0,0.00019274,2]
[379095140,1755130240914,-168.0,0.0001935,2]
[379095141,1755130240923,-338.0,0.00019425,2]
[379095142,1755130240933,-151.0,0.00019452,2]
[379095143,1755130240942,-151.0,0.00019452,2]
[379095144,1755130240952,-168.900189,0.00019452,2]
[379095145,1755130240965,-168.900189,0.00019452,2]
[379095146,1755130240974,-151.0,0.00019452,2]
[379095147,1755130240984,-151.0,0.00019452,2]
[379095148,1755130240994,-232.696141,0.00019452,2]
[379095149,1755130241003,-152.468289,0.00019452,2]
[379095150,1755130241013,-151.0,0.00019452,2]
[379095151,1755130241023,-151.0,0.00019452,2]
[379095152,1755130241032,-151.0,0.00019452,2]
[379095153,1755130241041,-170.201846,0.00019452,2]
[379095154,1755130241050,-151.0,0.00019452,2]
[379095155,1755130241060,-151.0,0.00019452,2]